[Event "Chinese League Division-A 2024"]
[Site "Fuling Chongqing"]
[Date "2024.07.06"]
[Round "9.20"]
[White "Yan, Tianqi"]
[Black "Ni, Shiqun"]
[Result "1/2-1/2"]
[ECO "C47"]
[WhiteElo "2306"]
[BlackElo "2352"]
[Annotator "TA"]
[PlyCount "64"]
[EventDate "2024.06.28"]
[EventType "team-tourn"]
[EventCountry "CHN"]
[SourceTitle "playchess.com"]
[Source "ChessBase"]
[SourceQuality "1"]
[TimeControl "40/5400+30:1800+30"]

{[%evp 17,64,0,6,0,0,0,0,0,0,0,0,0,0,0,0,0,0,0,0,0,0,0,0,-6,0,0,0,0,0,0,0,0,0,0,0,0,0,0,0,0,0,0,0,0,0,0,0,0,0]} 1. e4 {[%emt 0:00:05]} e5 {[%emt 0:00:08]} 2. Nf3 {[%emt 0:00:08]} Nf6 {[%emt 0:00:05]} 3. Nc3 {[%emt 0:00:19]} Nc6 {[%emt 0:00:56]} 4. d4 {[%emt 0:01:13]} exd4 {[%emt 0:00:11]} 5. Nxd4 {[%emt 0:00:08]} Bb4 {[%emt 0:00:04]} 6. Nxc6 {[%emt 0:00:28]} bxc6 {[%emt 0:00:08]} 7. Bd3 {[%emt 0:00:17]} d5 {[%emt 0:00:23]} 8. exd5 {[%emt 0:00:51]} cxd5 {[%emt 0:00:11]} 9. O-O {[%emt 0:00:35]} O-O {[%emt 0:00:19] The position is equal.} 10. h3 {[%emt 0:00:50]} c6 {[%emt 0:00:13]} 11. Qf3 {[%emt 0:01:24]} Re8 {[%emt 0:03:14]} 12. Bf4 {[%emt 0:03:09]} Bd6 {[%emt 0:01:09]} 13. Rfe1 {[%emt 0:01:34]} Be6 {[%emt 0:01:21]} 14. Ne2 {[%emt 0:04:08]} Bxf4 {[%emt 0:07:14]} 15. Nxf4 {[%emt 0:00:31]} Qb6 {[%emt 0:03:22]} 16. b3 {[%emt 0:04:16]} Bd7 {[%emt 0:00:22]} 17. Nh5 {[%emt 0:04:45]} Nxh5 {[%emt 0:00:29]} 18. Qxh5 {[%emt 0:00:10]} g6 {[%emt 0:01:30]} 19. Qh6 {[%emt 0:03:23]} Qb4 {[%emt 0:01:29]} 20. Re3 {[%emt 0:01:20]} Rxe3 {[%emt 0:02:12]} 21. Qxe3 {[%emt 0:00:19]} a5 {[%emt 0:00:54]} 22. Qe5 {[%emt 0:01:48]} Re8 {[%emt 0:03:41]} 23. Qc7 {[%emt 0:01:15]} Re7 {[%emt 0:02:01]} 24. Qd8+ {[%emt 0:01:32]} Kg7 {[%emt 0:00:45]} 25. a3 {[%emt 0:01:25]} Re1+ {[%emt 0:02:13]} 26. Rxe1 {[%emt 0:00:18]} Qxe1+ $11 {[%emt 0:00:07][%mdl 4096] Endgame. KQB-KQB} 27. Kh2 {[%emt 0:02:51]} Bf5 {[%emt 0:03:11]} 28. Bxf5 {[%emt 0:00:24]} Qe5+ {[%emt 0:00:05]} 29. Kg1 {[%emt 0:00:24]} Qe1+ {[%emt 0:01:52]} 30. Kh2 {[%emt 0:00:07] [#] Bd3 is the strong threat.} Qe5+ {[%emt 0:00:02]} 31. Kg1 {[%emt 0:00:07] And now Bd3 would win.} Qe1+ {[%emt 0:00:13]} 32. Kh2 {[%emt 0:00:07] Strongly threatening Bd3.} Qe5+ {[%emt 0:00:08] An even fight not without its subleties.   Weighted Error Value: White=0.00 (flawless) /Black=0.00 (flawless) .  OK:         	White=11    	Black=11     Best:        	White=1     	Black=3} 1/2-1/2

[Event "Chinese League Division-A 2024"]
[Site "Fuling Chongqing"]
[Date "2024.07.06"]
[Round "9.21"]
[White "Chen, Qi b"]
[Black "Wan, Yunguo"]
[Result "1/2-1/2"]
[ECO "B45"]
[WhiteElo "2481"]
[BlackElo "2498"]
[Annotator "TA"]
[PlyCount "69"]
[EventDate "2024.06.28"]
[EventType "team-tourn"]
[EventCountry "CHN"]
[SourceTitle "playchess.com"]
[Source "ChessBase"]
[SourceQuality "1"]
[TimeControl "40/5400+30:1800+30"]

{[%evp 12,69,39,26,40,24,33,33,37,29,53,18,14,27,31,0,37,16,30,16,55,45,52,31,41,36,51,10,71,64,56,29,82,58,66,71,64,0,0,0,118,84,120,53,51,57,74,56,113,95,116,119,95,37,29,20,20,31,56,48]} 1. e4 {[%emt 0:00:02]} c5 {[%emt 0:00:25]} 2. Nf3 {[%emt 0:00:08][%cal Bg1f3,Bf3d4,Bd4b5,Bb5d4][%mdl 32]} e6 {[%emt 0:00:50]} 3. d4 {[%emt 0:00:05]} cxd4 {[%emt 0:00:05]} 4. Nxd4 {[%emt 0:00:02]} Nf6 {[%emt 0:00:14]} 5. Nc3 {[%emt 0:00:05]} Nc6 {[%emt 0:00:03]} 6. Bf4 {[%emt 0:00:18]} Bc5 {[%emt 0:02:55]} 7. Ndb5 {[%emt 0:00:27]} O-O $1 {[%emt 0:00:23]} 8. Bc7 {[%emt 0:00:16]} Qe7 {[%emt 0:00:30] And now ...d5 would win.} 9. Bd6 $1 {[%emt 0:00:10]} Bxd6 {[%emt 0:00:07]} 10. Qxd6 {[%emt 0:00:04]} Qd8 {[%emt 0:00:09]} 11. O-O-O {[%emt 0:00:14]} a6 {[%emt 0:00:55]} 12. Nd4 {[%emt 0:00:07]} Ne7 {[%emt 0:00:18]} 13. a4 {[%emt 0:00:06]} Ne8 {[%emt 0:11:04]} 14. Qb4 {[%emt 0:00:21]} d6 {[%emt 0:00:57] [#]} 15. e5 $1 {[%emt 0:17:52]} d5 {[%emt 0:04:08]} (15... dxe5 16. Nxe6 Bxe6 17. Rxd8 Rxd8 18. Qxe7 $18) (15... Nd5 16. Nxd5) 16. Bd3 {[%emt 0:04:13]} a5 {[%emt 0:17:05]} 17. Qa3 {[%emt 0:02:44]} Nc7 {[%emt 0:04:34]} 18. f4 {[%emt 0:03:13]} Nc6 {[%emt 0:08:07]} 19. Ncb5 {[%emt 0:06:58]} Nxd4 {[%emt 0:05:21]} (19... Nxb5 $11 20. Nxb5 (20. Bxb5 Nxd4 21. Rxd4 Bd7 $16) 20... Nb4) 20. Nxd4 $16 {[%emt 0:00:15]} Bd7 {[%emt 0:00:02]} 21. h4 {[%emt 0:05:48]} Qe8 {[%emt 0:16:00]} (21... Rb8 $1 $11) 22. Qc5 {[%emt 0:12:02] Black is weak on the dark squares} Rc8 {[%emt 0:00:00][%cal Oc7b5]} 23. Qxa5 {[%emt 0:01:29] White is much more active.} Bxa4 {[%emt 0:00:00]} 24. f5 {[%emt 0:02:24]} (24. h5 $14) 24... exf5 $11 {[%emt 0:00:03]} 25. Nxf5 {[%emt 0:01:38] Black must now prevent Nd6.} Qd7 {[%emt 0:00:09]} (25... Ne6 $1 $11) 26. Qb4 $16 {[%emt 0:08:26] Ne7+ would now be deadly.} Kh8 {[%emt 0:00:37]} 27. Nd6 {[%emt 0:03:11]} (27. Qxb7 $6 Ra8 28. Qb6 Bb5 29. Nxg7 Qg4 (29... Kxg7 30. Qf6+ Kg8 31. Qg5+ Kh8 32. Qf6+ Kg8 33. Bxb5 $11) 30. Bxb5 Nxb5 31. Qxb5 Rfb8 $11 (31... Ra1+ 32. Kd2 $17)) (27. Rhf1 $1 $16) 27... Ra8 $14 {[%emt 0:01:28]} 28. Rhf1 {[%emt 0:07:17]} (28. Qxb7 $2 Rfb8 $19) 28... Bc6 {[%emt 0:02:31]} 29. Qf4 {[%emt 0:01:30][%cal Oc1d2]} (29. Nxb7 $2 Rfb8 30. Qd6 (30. Bf5 $2 Qe8 $19) 30... Rxb7 $19) 29... f6 {[%emt 0:04:22]} ({Black should try} 29... Kg8 $14) 30. h5 $1 $16 {[%emt 0:02:23]} Ne6 {[%emt 0:05:51] [#]} 31. Qf5 {[%emt 0:00:54]} Ng5 {[%emt 0:00:19] [#]} (31... Ra1+ $2 32. Kd2 Ng5 33. Rxa1 $18) 32. h6 {[%emt 0:03:43]} Qxf5 $14 {[%emt 0:00:46]} 33. hxg7+ {[%emt 0:02:10]} (33. Bxf5 $2 {too greedy.} fxe5 34. hxg7+ Kxg7 $19) (33. Nxf5 g6 34. Ne7 f5 $14 (34... fxe5 35. Rxf8+ Rxf8 36. b4 $14)) 33... Kxg7 {[%emt 0:00:04]} 34. Nxf5+ {[%emt 0:00:16]} (34. Bxf5 $2 {perishes.} fxe5 35. Bd3 Ra1+ 36. Kd2 Rxd1+ 37. Kxd1 Rxf1+ 38. Bxf1 Kf6 $19) 34... Kh8 {[%emt 0:00:43]} 35. exf6 {[%emt 0:01:59] Weighted Error Value: White=0.16 (very precise) /Black=0.21 (precise) .  Mistake:       	White=3     	Black=4      Inaccurate:     	White=4     	Black=3      OK:         	White=10    	Black=11     Best:        	---       	Black=2      Strong:       	White=2     	---} 1/2-1/2

[Event "Chinese League Division-A 2024"]
[Site "Fuling Chongqing"]
[Date "2024.07.06"]
[Round "9.22"]
[White "Peng, Xiongjian"]
[Black "Xu, Jun"]
[Result "0-1"]
[ECO "C81"]
[WhiteElo "2521"]
[BlackElo "2471"]
[Annotator "TA"]
[PlyCount "84"]
[EventDate "2024.06.28"]
[EventType "team-tourn"]
[EventCountry "CHN"]
[SourceTitle "playchess.com"]
[Source "ChessBase"]
[SourceQuality "1"]
[TimeControl "40/5400+30:1800+30"]

{[%evp 28,84,20,10,18,0,0,0,0,0,0,-13,-19,-16,-16,-37,0,0,0,0,0,0,24,24,27,-10,0,0,79,101,97,90,83,91,86,94,85,-162,-165,-172,-164,-189,-169,-175,-183,-211,-199,-206,-212,-267,-270,-417,-399,-424,-434,-481,-466,-947,-926]} 1. e4 {[%emt 0:00:06]} e5 {[%emt 0:00:13]} 2. Nf3 {[%emt 0:00:09]} Nc6 {[%emt 0:00:08]} 3. Bb5 {[%emt 0:00:06][%cal Bf1b5,Bb5a4,Ba4b3,Bb3c4][%mdl 32]} a6 {[%emt 0:00:09]} 4. Ba4 {[%emt 0:00:04]} Nf6 {[%emt 0:00:06]} 5. O-O {[%emt 0:00:25]} Nxe4 {[%emt 0:00:13]} 6. d4 {[%emt 0:00:19]} b5 {[%emt 0:00:05]} 7. Bb3 {[%emt 0:00:04]} d5 {[%emt 0:00:08]} 8. dxe5 {[%emt 0:00:04]} Be6 {[%emt 0:00:06]} 9. Qe2 {[%emt 0:02:12]} Be7 {[%emt 0:13:05]} 10. Rd1 {[%emt 0:03:22]} O-O {[%emt 0:01:26]} 11. c4 {[%emt 0:00:14]} bxc4 {[%emt 0:01:46]} 12. Bxc4 {[%emt 0:00:04]} Bc5 {[%emt 0:01:23]} 13. Be3 {[%emt 0:00:10]} Bxe3 {[%emt 0:00:06]} 14. Qxe3 {[%emt 0:00:05]} Qb8 {[%emt 0:00:24]} 15. Bb3 $1 {[%emt 0:01:17][%cal Ob1c3]} Na5 {[%emt 0:05:18]} 16. Nc3 {[%emt 0:13:22]} Nxb3 {[%emt 0:06:25]} 17. axb3 {[%emt 0:00:37]} Qxb3 {[%emt 0:01:40] The position is equal.} 18. Nd4 {[%emt 0:01:46]} Qb7 {[%emt 0:01:01]} 19. Nce2 {[%emt 0:12:21] Excellent horsemanship.} Bd7 {[%emt 0:03:44][%cal Oc7c5]} (19... Qxb2 20. f3 $18) (19... c5 20. Nxe6 d4 (20... fxe6 21. f3 $16) 21. N6xd4 cxd4 22. Nxd4 $16) 20. f3 {[%emt 0:10:13]} Nc5 {[%emt 0:02:21][%cal Be4c5,Bc5e6,Be6d4][%mdl 32]} 21. Nf4 {[%emt 0:00:36]} Rfe8 {[%emt 0:04:54][%cal Oc5e6]} (21... Ne6 {simplifies} 22. Nfxe6 fxe6 23. Rac1 a5) 22. Nh5 {[%emt 0:06:51]} f6 {[%emt 0:03:08] Wards off Qg5} 23. Qc1 {[%emt 0:10:34]} Qb6 {[%emt 0:08:24]} (23... fxe5 $2 24. Qg5 (24. Qxc5 exd4 25. Qxd4 Re7 $16) 24... g6 25. b4 $18) 24. exf6 $40 {[%emt 0:00:56][%mdl 128] White attacks.} Ne6 {[%emt 0:04:47] [#]} 25. Kh1 $1 {[%emt 0:04:31]} Nxd4 {[%emt 0:01:15]} 26. Qg5 {[%emt 0:08:20] Dodges Re5} (26. Qf4 $5 Nf5 (26... Qxb2 $2 27. f7+ Kh8 28. fxe8=Q+ Rxe8 29. Qxc7 $18) 27. Nxg7 Qxf6 28. Nxe8 Rxe8 29. Rxd5 Qxb2 30. Rg1 $14) 26... Ne6 {[%emt 0:01:37]} (26... Qxb2 27. Qxg7#) 27. Qxd5 {[%emt 0:00:26]} Bc6 {[%emt 0:00:42]} (27... Qb5 $11 {keeps the balance.} 28. fxg7 (28. f7+ Kxf7 29. Qxd7+ Kf8 $11) 28... Bc6 (28... Qxd5 29. Rxd5 Bc6 30. Re5 $11) 29. Nf6+ Kf7 30. Qxb5 (30. g8=Q+ Rxg8 31. Qxb5 Bxb5 $11) 30... Bxb5 31. Nxe8 Bxe8) 28. Qf5 $16 {[%emt 0:00:39]} Kh8 {[%emt 0:04:48] [#] ...g6 would now be deadly.} 29. Qe5 {[%emt 0:16:06]} Qb5 {[%emt 0:04:47]} 30. fxg7+ {[%emt 0:00:30]} Kg8 {[%emt 0:00:09]} 31. Nf6+ {[%emt 0:01:53]} Kf7 {[%emt 0:00:20]} 32. Nd5 $2 {[%emt 0:02:24] This costs White the game.} (32. g8=Q+ Rxg8 33. Qxb5 Bxb5 $11 (33... axb5 34. Nxg8 Rxg8 35. h4 $11)) (32. Ng4 $16 {keeps the pressure on. Qf6+ would kill now.} Nxg7 33. Qf4+ (33. Qxc7+ Re7 $11) 33... Kg8 34. Nf6+ (34. Qxc7 Kh8 $17) 34... Kh8 35. Nxe8 (35. Qxc7 Re6 $17) 35... Rxe8 36. Re1 (36. Qxc7 Re6 $16) 36... Rxe1+ 37. Rxe1) 32... Bxd5 $19 {[%emt 0:02:13]} 33. Rxd5 {[%emt 0:00:04]} Qc6 {[%emt 0:01:04]} 34. Rad1 {[%emt 0:02:18]} Re7 {[%emt 0:03:25][%cal Of7g8]} 35. Qe4 {[%emt 0:00:05] Black must now prevent Rf5+.} Kg8 {[%emt 0:01:27]} (35... Kxg7 $2 {too greedy.} 36. Rg5+ Nxg5 37. Qxc6 $18) 36. Qh4 {[%emt 0:04:39]} Rxg7 {[%emt 0:02:02]} 37. h3 {[%emt 0:00:30]} Rf8 {[%emt 0:00:26]} 38. Qe4 {[%emt 0:00:33]} Nf4 {[%emt 0:00:55]} 39. R5d4 {[%emt 0:00:28]} (39. R5d2 {only move.} Qxe4 40. fxe4) 39... Qxe4 {[%emt 0:00:30]} 40. Rxe4 {[%emt 0:00:00]} Nxg2 {[%emt 0:00:00] Black is clearly winning.} ({Stronger than} 40... Rxg2 41. Rxf4 Rg3 42. Rg4+ Rxg4 43. fxg4 $11) 41. Rdd4 {[%emt 0:02:46]} Rxf3 {[%emt 0:02:51]} 42. Kh2 {[%emt 0:10:05]} (42. Re8+ $142 Kf7 43. Rd7+ Kxe8 44. Rxg7) 42... h5 {[%emt 0:00:46] Weighted Error Value: White=0.42/Black=0.08 (flawless) .  Loses game:     	White=1     	---        Mistake:       	White=2     	Black=1      Inaccurate:     	White=1     	Black=1      OK:         	White=6     	Black=11     Best:        	White=3     	Black=9      Strong:       	White=1     	---} 0-1

[Event "Chinese League Division-A 2024"]
[Site "Fuling Chongqing"]
[Date "2024.07.06"]
[Round "9.23"]
[White "Wei, Yi"]
[Black "Cao, Qingfeng"]
[Result "1-0"]
[ECO "A28"]
[WhiteElo "2755"]
[BlackElo "2189"]
[Annotator "TA"]
[PlyCount "119"]
[EventDate "2024.06.28"]
[EventType "team-tourn"]
[EventCountry "CHN"]
[SourceTitle "playchess.com"]
[Source "ChessBase"]
[SourceQuality "1"]
[TimeControl "40/5400+30:1800+30"]

{[%evp 35,119,59,62,51,38,-37,-39,-164,-183,-195,-158,-186,-190,-168,-96,-147,43,50,62,42,108,128,100,-185,-191,-185,-43,-56,0,-86,0,-4,-23,-12,-7,0,0,-45,-33,-294,-272,-287,-295,-254,-115,-181,-122,-120,-35,-125,-125,-135,-126,-139,-12,-13,-14,-35,-10,-112,-93,-142,-42,-31,0,0,0,0,0,0,0,0,0,-41,-41,-41,-41,-41,0,0,970,965,29996,29997,29997,29998]} 1. c4 {[%emt 0:00:05]} Nf6 {[%emt 0:00:40]} 2. Nc3 {[%emt 0:00:31]} e5 {[%emt 0:01:09]} 3. Nf3 {[%emt 0:00:27]} Nc6 {[%emt 0:00:23]} 4. d3 {[%emt 0:00:43]} Bb4 {[%emt 0:04:02]} 5. Bd2 {[%emt 0:11:22]} a5 {[%emt 0:10:16]} 6. g3 {[%emt 0:05:19]} O-O {[%emt 0:07:23]} 7. Bg2 {[%emt 0:00:15]} Re8 {[%emt 0:00:41]} 8. O-O {[%emt 0:00:20]} d5 {[%emt 0:02:53]} 9. cxd5 {[%emt 0:04:29]} Nxd5 {[%emt 0:00:37]} 10. Rc1 {[%emt 0:02:49]} Nxc3 {[%emt 0:12:06]} 11. bxc3 {[%emt 0:01:01]} Bf8 {[%emt 0:01:25]} 12. a4 {[%emt 0:03:02]} Rb8 {[%emt 0:05:39]} 13. Rb1 {[%emt 0:02:14]} Bf5 {[%emt 0:06:49]} 14. Rb5 {[%emt 0:09:02]} Qd7 {[%emt 0:05:15]} 15. Qb3 {[%emt 0:05:00]} b6 {[%emt 0:09:53]} 16. Ng5 {[%emt 0:02:03]} Nd8 {[%emt 0:01:13]} 17. f4 {[%emt 0:11:07]} Ne6 {[%emt 0:09:52]} 18. Rd5 {[%emt 0:10:01]} (18. Rxe5 Nxg5 19. Rxf5 Nf3+ $16 (19... Qxf5 20. fxg5 $14)) 18... Nc5 {[%emt 0:03:42]} 19. Qb1 {[%emt 0:11:34]} Qxa4 {[%emt 0:04:56]} 20. fxe5 {[%emt 0:00:45]} (20. Nxf7 $1 $14 Nb3 (20... Kxf7 21. fxe5 Kg8 22. Rd4 $16) 21. Qd1) 20... Bg6 $15 {[%emt 0:00:34]} 21. Qe1 {[%emt 0:12:58]} (21. Nf3 $15) 21... Qa2 $1 $19 {[%emt 0:02:42]} 22. Bf4 {[%emt 0:01:54]} h6 {[%emt 0:04:53]} 23. Nh3 {[%emt 0:00:01]} a4 {[%emt 0:00:31]} 24. Rd4 {[%emt 0:00:45]} Rbd8 {[%emt 0:01:25]} (24... a3 $19 25. Qf2 Ne6) 25. Bc6 {[%emt 0:00:14]} (25. Be3 $142) 25... Rxd4 $2 {[%emt 0:01:56]} (25... Qe6 $1 $17 {[%cal Re6c6]} 26. Bg2 a3) 26. cxd4 $14 {[%emt 0:00:02]} Re6 {[%emt 0:00:07]} 27. Bf3 {[%emt 0:00:04]} (27. Bg2 $5) 27... Nb3 {[%emt 0:00:34]} (27... Bf5 $14 28. g4 Rg6) 28. Be3 $1 $16 {[%emt 0:00:16]} Qb2 {[%emt 0:00:46]} 29. Nf4 $2 {[%emt 0:00:57][%mdl 8192]} (29. Qf2 $1 $16 {aiming for Nf4.} Bb4 30. Nf4) 29... Nxd4 $1 $19 {[%emt 0:00:23]} 30. Nxe6 {[%emt 0:02:53]} fxe6 {[%emt 0:00:07]} (30... Nxf3+ $1 $19 31. Rxf3 fxe6) 31. Bg4 $1 $15 {[%emt 0:01:28]} Bc5 {[%emt 0:01:03]} ({Black should try} 31... a3 $1 $15 32. Qf2 Nf5 33. Bxf5 exf5 (33... Bxf5 34. g4 $16)) 32. Kh1 {[%emt 0:00:49]} (32. Qf2 $11) 32... a3 {[%emt 0:01:39]} (32... Be8 $1 $17 {[%cal Re8c6] White must now prevent ...Bc6+.} 33. Bxd4 Qxd4 34. Bxe6+ Kh8) 33. Bxd4 {[%emt 0:00:15]} Qxd4 {[%emt 0:00:46]} 34. Bxe6+ {[%emt 0:00:01]} Kh7 {[%emt 0:00:13]} 35. Qa1 {[%emt 0:00:28]} Qe3 {[%emt 0:00:50]} 36. Bg4 {[%emt 0:01:35]} b5 {[%emt 0:00:20]} 37. e6 $2 {[%emt 0:01:38][%mdl 8192]} (37. Qa2 $15) 37... h5 $1 $19 {[%emt 0:00:43]} 38. Bf3 {[%emt 0:00:29]} Qxe6 {[%emt 0:00:09]} 39. Qc3 {[%emt 0:00:27]} Qe3 {[%emt 0:00:51]} (39... Bd6 $1 $19 {is more deadly.} 40. Qa5 Qe8) 40. Kg2 {[%emt 0:00:00]} (40. Qc2 $17) 40... Bd6 {[%emt 0:00:00]} (40... Bf5 $19 41. Qb3 Be6) 41. Qb3 {[%emt 0:03:22] [#]} c6 {[%emt 0:10:42]} (41... Qe8 $1 $17 {[%mdl 512] And now ...Bf7 would win.} 42. Qd5 b4) 42. Qa2 {[%emt 0:09:28]} ({White should play} 42. Qc2 $15) 42... Qe8 $17 {[%emt 0:07:50]} 43. Qc2 {[%emt 0:04:22]} c5 {[%emt 0:00:53]} 44. Qa2 {[%emt 0:06:26]} b4 {[%emt 0:00:29]} (44... c4 $1 $17 {...Bc5 would now be deadly.} 45. dxc4 Qe6) 45. Bd5 $11 {[%emt 0:00:38]} Qe5 {[%emt 0:01:04]} 46. Bg8+ {[%emt 0:03:13]} Kh8 {[%emt 0:01:00]} 47. Bf7 {[%emt 0:00:07] [#]} (47. e4 $1 $11) 47... Bf5 $1 $17 {[%emt 0:03:30]} 48. Rf2 {[%emt 0:01:17]} (48. e4 $142 Bd7 49. Qd5 Qxd5 50. Bxd5) 48... Bd7 {[%emt 0:03:21]} (48... h4 $1 $17 {[%cal Rh4g3]} 49. Qc4 h3+ (49... hxg3 50. Qh4+ Bh7 51. Qd8+) 50. Kg1 Be7 51. Rxf5 Qxf5) 49. Qc4 $15 {[%emt 0:01:03]} Bc6+ {[%emt 0:00:44]} 50. e4 {[%emt 0:00:06]} Kh7 {[%emt 0:03:49]} 51. Be6 {[%emt 0:02:12]} (51. Qa6 $5 Bd7 $8 52. Qa8 $11) 51... Be8 {[%emt 0:01:05]} 52. Rf5 {[%emt 0:01:22]} Qb2+ {[%emt 0:00:22]} 53. Rf2 {[%emt 0:00:16]} Qe5 {[%emt 0:00:02]} 54. Kh3 {[%emt 0:00:44]} (54. Rf5 $5 Qb2+ $8 55. Rf2 Qe5 $11) 54... g6 {[%emt 0:01:04]} 55. Bf7 $1 {[%emt 0:00:18]} Bd7+ {[%emt 0:01:31]} 56. Kg2 {[%emt 0:00:02]} Kg7 {[%emt 0:00:24]} 57. Bg8 {[%emt 0:00:44]} Be8 $2 {[%emt 0:00:09][%mdl 8192] [#]} (57... Kh8 $11 58. Qf7 Qg7) 58. Rf7+ $1 $18 {[%emt 0:00:34]} Kh6 {[%emt 0:00:20]} 59. Rh7+ {[%emt 0:00:04]} Kg5 {[%emt 0:00:08]} 60. h4+ {[%emt 0:00:03]} 1-0

[Event "Chinese League Division-A 2024"]
[Site "Fuling Chongqing"]
[Date "2024.07.06"]
[Round "9.24"]
[White "Sun, Fanghui"]
[Black "Guo, Qi"]
[Result "1/2-1/2"]
[ECO "C42"]
[WhiteElo "2115"]
[BlackElo "2362"]
[Annotator "TA"]
[PlyCount "73"]
[EventDate "2024.06.28"]
[EventType "team-tourn"]
[EventCountry "CHN"]
[SourceTitle "playchess.com"]
[Source "ChessBase"]
[SourceQuality "1"]
[TimeControl "40/5400+30:1800+30"]

{[%evp 13,73,9,11,16,9,-24,-1,0,0,0,0,0,6,22,25,22,14,21,14,26,22,0,21,16,22,25,34,32,38,0,0,7,12,0,5,0,0,0,0,0,0,0,0,0,0,0,0,-7,0,0,0,0,0,0,11,0,11,0,11,11,11,11]} 1. e4 {[%emt 0:00:04]} e5 {[%emt 0:00:14]} 2. Nf3 {[%emt 0:00:06]} Nf6 {[%emt 0:00:07]} 3. Nxe5 {[%emt 0:00:47]} d6 {[%emt 0:00:08]} 4. Nf3 {[%emt 0:00:10]} Nxe4 {[%emt 0:00:07]} 5. Nc3 {[%emt 0:00:25]} Nxc3 {[%emt 0:00:07]} 6. dxc3 {[%emt 0:00:04]} Be7 {[%emt 0:00:06]} 7. Be3 {[%emt 0:00:40]} O-O {[%emt 0:00:16]} 8. Qd2 {[%emt 0:03:59]} Nd7 {[%emt 0:00:10]} 9. h3 {[%emt 0:07:54]} Nf6 {[%emt 0:00:31]} 10. Bd3 {[%emt 0:01:12]} Re8 {[%emt 0:05:28]} 11. O-O-O {[%emt 0:06:18]} c5 {[%emt 0:02:06]} 12. Rhe1 {[%emt 0:04:32]} Qa5 {[%emt 0:05:18]} 13. Kb1 {[%emt 0:01:00]} Be6 {[%emt 0:03:26]} 14. c4 {[%emt 0:08:45]} Qxd2 {[%emt 0:00:41]} 15. Bxd2 {[%emt 0:01:39]} h6 {[%emt 0:01:34]} 16. b3 {[%emt 0:03:04]} a6 {[%emt 0:03:10]} 17. Nh4 {[%emt 0:07:14]} d5 {[%emt 0:03:36]} (17... Ng4 $5 18. hxg4 Bxh4 $11) 18. cxd5 {[%emt 0:08:54]} Nxd5 {[%emt 0:04:01]} 19. Nf5 {[%emt 0:01:11]} Bxf5 {[%emt 0:02:59]} 20. Bxf5 {[%emt 0:00:05] aiming for Be4.} Bf6 {[%emt 0:00:14]} 21. c4 {[%emt 0:05:21]} Nc3+ {[%emt 0:01:04] The position is equal.} 22. Bxc3 {[%emt 0:00:07]} Bxc3 {[%emt 0:00:04]} 23. Rxe8+ {[%emt 0:00:08]} Rxe8 $11 {[%emt 0:00:03][%mdl 4096] Endgame. KRB-KRB} 24. Kc2 {[%emt 0:00:41]} Bd4 {[%emt 0:00:25]} 25. f3 {[%emt 0:01:19]} b6 {[%emt 0:02:35]} 26. Be4 {[%emt 0:00:19]} g6 {[%emt 0:00:08]} 27. Re1 {[%emt 0:00:27]} Kg7 {[%emt 0:00:09] [#] Strongly threatening ...f5.} 28. Kd1 {[%emt 0:00:08]} f5 {[%emt 0:02:41]} 29. Bb7 {[%emt 0:00:26]} Be3 {[%emt 0:02:29]} 30. g4 {[%emt 0:07:24]} f4 {[%emt 0:02:35]} 31. Kc2 {[%emt 0:01:01]} Rb8 {[%emt 0:01:10]} 32. Bc6 {[%emt 0:02:50]} ({Reject} 32. Bxa6 Ra8 33. Bb7 Rxa2+ 34. Kd3 Rd2+ 35. Kc3 Kf6 $15) 32... Rc8 {[%emt 0:01:28]} 33. Bb7 {[%emt 0:00:29]} Rc7 {[%emt 0:00:18]} 34. Ba8 {[%emt 0:01:22]} ({Much weaker is} 34. Bxa6 Ra7 35. Bb5 Rxa2+ 36. Kb1 Rh2 $17) 34... Re7 {[%emt 0:00:35]} 35. a4 {[%emt 0:04:59]} Kf6 {[%emt 0:00:45]} 36. h4 {[%emt 0:00:45]} a5 {[%emt 0:02:23]} 37. Re2 {[%emt 0:01:47] Weighted Error Value: White=0.05 (flawless) /Black=0.04 (flawless) .  Inaccurate:     	White=2     	---        OK:         	White=16    	Black=7      Best:        	White=2     	Black=1} 1/2-1/2